fUST/lending_fUST_20240214
["ID","MTS","AMOUNT","RATE_DAILY","PERIOD"]
[313951914,1707852646381,-15536.2161922,0.0003724,30]
[313951915,1707852646390,-154.87609912,0.00037243,4]
[313951916,1707852646399,-303.57716858,0.00037244,4]
[313951917,1707852646409,-352.67052686,0.00037244,4]
[313951918,1707852646419,-347.04601791,0.00037244,4]
[313951919,1707852646428,-154.87609912,0.00037244,4]
[313951920,1707852646437,-1280.62889486,0.00037244,4]
[313951921,1707852646446,-584.32277695,0.00037244,4]
[313951922,1707852646456,-178.05486055,0.00037244,4]
[313951923,1707852646465,-12055.54295435,0.00037244,3]
[313951924,1707852646475,-18074.01902176,0.00037244,4]
[313951925,1707852646484,-7098.02345881,0.00037244,2]
[313951926,1707852646493,-154.87609912,0.00037244,4]
[313951927,1707852646504,-154.86062544,0.00037244,6]
[313951928,1707852646515,-263.64881695,0.00037244,4]
[313951929,1707852646526,-194.5355423,0.00037244,4]
[313951930,1707852646535,-155.69340502,0.00037244,90]
[313951931,1707852646545,-5305.83254973,0.00037244,4]
[313951954,1707852931305,4600.0,0.00029,120]
[313952051,1707853746209,-324.33055598,0.00024274,2]
[313952052,1707853746229,-1202.94239727,0.00024275,2]
[313952053,1707853746250,-681.54066331,0.00024284,2]
[313952054,1707853746271,-5617.16980792,0.00024285,2]
[313952056,1707853748115,-360.81623429,0.00024274,2]
[313952057,1707853748135,-3344.23902158,0.00024285,2]
[313952058,1707853748168,-178.77097385,0.00024285,2]
[313952059,1707853748190,-182.43490854,0.00024285,3]
[313952060,1707853748338,-2469.25034399,0.00024285,3]
[313952061,1707853748362,-3214.3311294,0.00025315,2]
[313952062,1707853748384,-7211.68035835,0.00025315,2]
[313952063,1707853751117,-558.64366445,0.00025315,2]
[313952064,1707853751140,-412.53633556,0.00025317,2]
[313952066,1707853763134,-2033.06101671,0.00025317,2]
[313952067,1707853763159,-200.0,0.00026712,15]
[313952068,1707853763179,-154.79876161,0.00029,2]
[313952069,1707853763199,-155.82041151,0.00029,2]
[313952070,1707853763220,-7029.12833103,0.00029,7]
[313952117,1707853835277,-4592.37272916,0.00029,7]
[313952119,1707853835291,-8006.07001695,0.00029,7]
[313952121,1707853835301,-161.64604855,0.00029,2]
[313952123,1707853835311,-154.79876161,0.00029,2]
[313952125,1707853835321,-1950.45781889,0.0003,4]
[313952127,1707853835332,-244.93876299,0.0003,4]
[313952130,1707853835342,-154.79876161,0.0003,4]
[313952133,1707853835352,-200.0,0.00031899,15]
[313952135,1707853835362,-1350.4630255,0.00032715,2]
[313952136,1707853835371,-196.368472,0.00032729,2]
[313952138,1707853835381,-864.0,0.00033,2]
[313952140,1707853835391,-864.0,0.00033151,2]
[313952142,1707853835401,-864.0,0.00033425,2]
[313952144,1707853835410,-154.81422293,0.00033527,5]
[313952146,1707853835420,-864.0,0.00033699,2]
[313952148,1707853835429,-864.0,0.00033973,2]
[313952150,1707853835439,-864.0,0.00034247,2]
[313952152,1707853835449,-864.0,0.00034521,2]
[313952154,1707853835459,-484.78188868,0.00034999,4]
[313952156,1707853835469,-1533.16044773,0.00035,4]
[313952158,1707853835478,-592.91812692,0.00035143,2]
[313952160,1707853835488,-360.62112856,0.00035144,2]
[313952162,1707853835497,-864.0,0.00035901,2]
[313952164,1707853835506,-869.0,0.00036247,2]
[313952166,1707853835516,-3105.06100241,0.00036907,4]
[313952168,1707853835526,-1000.0,0.00037,37]
[313952170,1707853835538,-156.00429501,0.00037094,4]
[313952172,1707853835548,-1833.729052,0.000372,9]
[313952174,1707853835558,-1207.759157,0.000372,9]
[313952176,1707853835571,-1000.0,0.0003722,9]
[313952179,1707853835580,-1000.0,0.0003722,9]
[313952181,1707853835590,-1276.2070171,0.00037233,2]
[313952183,1707853835600,-1000.0,0.0003724,9]
[313952185,1707853835610,-1000.0,0.0003724,9]
[313952186,1707853835619,-3121.96,0.00037242,3]
[313952188,1707853835629,-2601.64,0.00037242,3]
[313952190,1707853835640,-154.82968734,0.00037244,4]
[313952192,1707853835650,-387.16670854,0.00037252,4]
[313952194,1707853835659,-503.99755222,0.00037252,4]
[313952196,1707853835669,-155.69913895,0.00037252,4]
[313952199,1707853835680,-6811.54196711,0.00037252,4]
[313952201,1707853835690,-500.0,0.00037252,14]
[313952203,1707853835700,-500.0,0.00037252,14]
[313952205,1707853835710,-524.07250563,0.00037252,14]
[313952206,1707853835719,-514.93028056,0.00037252,14]
[313952208,1707853835729,-500.0,0.00037252,14]
[313952210,1707853835740,-235.04016301,0.00037252,14]
[313952212,1707853835750,-500.60984003,0.00037252,14]
[313952214,1707853835760,-501.97642794,0.00037252,14]
[313952216,1707853835770,-511.56532737,0.00037252,14]
[313952219,1707853835779,-500.0,0.00037252,2]
[313952220,1707853835789,-500.0,0.00037252,14]
[313952222,1707853835800,-500.0,0.00037252,14]
[313952224,1707853835812,-500.0,0.00037252,14]
[313952227,1707853835823,-500.0,0.00037252,14]
[313952228,1707853835835,-500.0,0.00037252,14]
[313952230,1707853835844,-614.49,0.00037252,14]
[313952232,1707853835853,-500.0,0.00037252,14]
[313952234,1707853835863,-488.54386898,0.00037252,14]
[313952237,1707853835874,-500.0,0.00037252,14]
[313952238,1707853835883,-500.0,0.00037252,14]
[313952240,1707853835893,-500.0,0.00037252,2]
[313952243,1707853835905,-500.0,0.00037252,14]
[313952244,1707853835914,-500.0,0.00037252,14]
[313952246,1707853835924,-500.0,0.00037252,2]
[313952248,1707853835934,-500.0,0.00037252,14]
[313952250,1707853835943,-500.0,0.00037252,2]
[313952252,1707853835953,-500.0,0.00037252,2]
[313952254,1707853835963,-500.0,0.00037252,2]
[313952257,1707853835973,-500.0,0.00037252,14]
[313952258,1707853835982,-185.07172042,0.00037252,14]
[313952260,1707853835992,-155.15496716,0.00037252,14]
[313952262,1707853836002,-635.91,0.00037252,14]
[313952264,1707853836011,-635.91,0.00037252,14]
[313952266,1707853836021,-635.91,0.00037252,14]
[313952268,1707853836031,-635.91,0.00037252,14]
[313952270,1707853836040,-268.85812163,0.00037252,14]
[313952388,1707853843328,-1190.18142299,0.00025315,2]
[313952390,1707853843338,-280.0,0.00035089,15]
[313952391,1707853843347,-884.37,0.00037252,14]
[313952392,1707853843357,-884.37,0.00037252,14]
[313952393,1707853843366,-884.37,0.00037252,14]
[313952394,1707853843376,-884.37,0.00037252,14]
[313952395,1707853843385,-884.37,0.00037252,14]
[313952396,1707853843393,-500.0,0.00037252,14]
[313952397,1707853843403,-500.0,0.00037252,14]
[313952398,1707853843412,-500.0,0.00037252,14]
[313952399,1707853843421,-500.0,0.00037252,14]
[313952400,1707853843430,-393.0,0.00037252,35]
[313952401,1707853843439,-999.0,0.00037252,35]
[313952402,1707853843449,-226.61,0.00037252,35]
[313952403,1707853843458,-176.0,0.00037252,35]
[313952404,1707853843467,-393.0,0.00037252,35]
[313952405,1707853843478,-999.0,0.00037252,35]
[313952406,1707853843487,-176.0,0.00037252,35]
[313952407,1707853843497,-500.0,0.00037253,14]
[313952408,1707853843506,-500.0,0.00037253,14]
[313952409,1707853843515,-500.0,0.00037253,2]
[313952410,1707853843524,-500.0,0.00037253,2]
[313952411,1707853843534,-500.0,0.00037253,2]
[313952412,1707853843575,-500.0,0.00037253,2]
[313952413,1707853843584,-239.63959776,0.00037253,2]
[313952414,1707853843593,-1000.0,0.0003726,9]
[313952415,1707853843602,-1000.0,0.0003726,9]
[313952416,1707853843611,-393.0,0.00037262,35]
[313952417,1707853843621,-999.0,0.00037262,35]
[313952418,1707853843630,-150.5,0.00037262,35]
[313952419,1707853843639,-176.0,0.00037262,35]
[313952420,1707853843648,-393.0,0.00037262,35]
[313952421,1707853843657,-999.0,0.00037262,35]
[313952422,1707853843666,-176.0,0.00037262,35]
[313952423,1707853843675,-393.0,0.00037262,35]
[313952424,1707853843785,-999.0,0.00037262,35]
[313952425,1707853843796,-176.0,0.00037262,35]
[313952426,1707853843806,-402.94,0.00037262,35]
[313952427,1707853843815,-1007.19,0.00037262,35]
[313952428,1707853843826,-176.0,0.00037262,35]
[313952429,1707853843838,-157.25,0.00037262,35]
[313952430,1707853843846,-2168.03,0.0003727,3]
[313952431,1707853843855,-214.19,0.00037272,35]
[313952432,1707853843865,-393.0,0.00037272,35]
[313952433,1707853843875,-999.0,0.00037272,35]
[313952434,1707853843884,-150.5,0.00037272,35]
[313952435,1707853843893,-176.0,0.00037272,35]
[313952436,1707853843903,-393.0,0.00037272,35]
[313952437,1707853843913,-999.0,0.00037272,35]
[313952438,1707853843923,-176.0,0.00037272,35]
[313952439,1707853843932,-393.0,0.00037272,35]
[313952440,1707853843941,-999.0,0.00037272,35]
[313952441,1707853843951,-176.0,0.00037272,35]
[313952442,1707853843960,-393.0,0.00037272,35]
[313952443,1707853843969,-999.0,0.00037272,35]
[313952444,1707853843979,-176.0,0.00037272,35]
[313952445,1707853843988,-150.5,0.00037272,35]
[313952446,1707853843997,-150.5,0.00037272,35]
[313952447,1707853844007,-828.68,0.00037279,14]
[313952448,1707853844017,-828.68,0.00037279,14]
[313952449,1707853844026,-828.68,0.00037279,14]
[313952450,1707853844035,-828.68,0.00037279,14]
[313952451,1707853844044,-828.68,0.00037279,14]
[313952452,1707853844054,-681.13601109,0.00037279,4]
[313952453,1707853844063,-1202.19924875,0.00037279,4]
[313952454,1707853844072,-324.17513104,0.00037279,4]
[313952455,1707853844082,-500.0,0.00037279,14]
[313952456,1707853844091,-500.0,0.00037279,14]
[313952457,1707853844100,-500.0,0.00037279,14]
[313952458,1707853844109,-500.0,0.00037279,14]
[313952459,1707853844119,-641.12,0.00037279,14]
[313952460,1707853844128,-500.0,0.00037279,14]
[313952461,1707853844137,-500.0,0.00037279,14]
[313952462,1707853844146,-500.0,0.00037279,14]
[313952463,1707853844155,-500.0,0.00037279,14]
[313952464,1707853844164,-500.0,0.00037279,14]
[313952465,1707853844174,-500.0,0.00037279,14]
[313952466,1707853844183,-500.0,0.0003728,14]
[313952467,1707853844192,-500.0,0.0003728,14]
[313952468,1707853844201,-500.0,0.0003728,14]
[313952469,1707853844210,-502.2475007,0.0003728,14]
[313952470,1707853844219,-500.0,0.0003728,14]
[313952471,1707853844228,-500.0,0.0003728,2]
[313952472,1707853844237,-592.12256865,0.0003728,2]
[313952473,1707853844247,-500.0,0.0003728,14]
[313952474,1707853844257,-500.0,0.0003728,14]
[313952475,1707853844267,-500.0,0.0003728,14]
[313952476,1707853844276,-500.0,0.0003728,14]
[313952477,1707853844285,-500.0,0.0003728,14]
[313952478,1707853844294,-500.0,0.0003728,14]
[313952479,1707853844304,-500.0,0.0003728,14]
[313952480,1707853844314,-500.0,0.0003728,14]
[313952481,1707853844323,-500.0,0.0003728,14]
[313952482,1707853844332,-500.0,0.0003728,14]
[313952483,1707853844341,-500.0,0.0003728,14]
[313952484,1707853844350,-500.0,0.0003728,14]
[313952485,1707853844359,-500.0,0.0003728,14]
[313952486,1707853844368,-500.0,0.0003728,14]
[313952487,1707853844377,-500.0,0.0003728,14]
[313952488,1707853844387,-500.0,0.0003728,14]
[313952489,1707853844396,-522.56979467,0.0003728,14]
[313952490,1707853844405,-500.0,0.0003728,14]
[313952491,1707853844414,-500.0,0.0003728,14]
[313952492,1707853844424,-500.0,0.0003728,14]
[313952493,1707853844433,-500.0,0.0003728,14]
[313952494,1707853844442,-500.0,0.0003728,14]
[313952495,1707853844451,-500.0,0.0003728,14]
[313952496,1707853844461,-500.0,0.0003728,14]
[313952497,1707853844470,-500.0,0.0003728,14]
[313952498,1707853844481,-500.0,0.0003728,14]
[313952499,1707853844491,-500.0,0.0003728,14]
[313952500,1707853844500,-500.0,0.0003728,14]
[313952501,1707853844509,-500.0,0.0003728,14]
[313952502,1707853844519,-500.0,0.0003728,14]
[313952503,1707853844528,-500.0,0.0003728,14]
[313952504,1707853844538,-500.0,0.0003728,14]
[313952505,1707853844547,-523.71,0.0003728,14]
[313952506,1707853844556,-500.0,0.0003728,14]
[313952507,1707853844565,-500.0,0.0003728,14]
[313952508,1707853844574,-500.0,0.0003728,14]
[313952509,1707853844583,-500.0,0.0003728,14]
[313952510,1707853844592,-500.0,0.0003728,14]
[313952511,1707853844601,-500.0,0.0003728,14]
[313952512,1707853844610,-500.0,0.0003728,14]
[313952513,1707853844619,-500.0,0.0003728,14]
[313952514,1707853844628,-500.0,0.0003728,14]
[313952515,1707853844637,-500.0,0.0003728,14]
[313952516,1707853844646,-500.0,0.0003728,14]
[313952517,1707853844655,-500.0,0.0003728,14]
[313952518,1707853844664,-317.65799398,0.0003728,14]
[313952519,1707853844674,-828.68,0.0003728,14]
[313952520,1707853844683,-828.68,0.0003728,14]
[313952521,1707853844692,-828.68,0.0003728,14]
[313952522,1707853844701,-819.3,0.0003728,14]
[313952523,1707853844710,-819.3,0.0003728,14]
[313952524,1707853844719,-819.3,0.0003728,14]
[313952525,1707853844728,-819.3,0.0003728,14]
[313952526,1707853844737,-819.3,0.0003728,14]
[313952527,1707853844746,-500.0,0.0003728,14]
[313952528,1707853844755,-500.0,0.0003728,14]
[313952529,1707853844764,-1000.0,0.0003728,2]
[313952530,1707853844773,-500.0,0.0003728,14]
[313952531,1707853844784,-1000.0,0.0003728,9]
[313952532,1707853844793,-500.0,0.0003728,14]
[313952533,1707853844802,-1000.0,0.0003728,9]
[313952534,1707853844811,-500.0,0.0003728,14]
[313952535,1707853844821,-500.0,0.0003728,14]
[313952536,1707853844833,-500.0,0.0003728,14]
[313952537,1707853844842,-500.0,0.0003728,14]
[313952538,1707853844851,-500.0,0.0003728,14]
[313952539,1707853844860,-500.0,0.0003728,14]
[313952540,1707853844870,-500.0,0.0003728,14]
[313952541,1707853844879,-500.0,0.0003728,14]
[313952542,1707853844888,-500.0,0.0003728,14]
[313952543,1707853844898,-500.0,0.0003728,14]
[313952544,1707853844908,-500.0,0.0003728,14]
[313952545,1707853844917,-500.0,0.0003728,14]
[313952546,1707853844926,-500.0,0.0003728,14]
[313952547,1707853844935,-500.0,0.0003728,14]
[313952548,1707853844944,-500.0,0.0003728,14]
[313952549,1707853844954,-500.0,0.0003728,14]
[313952550,1707853844963,-583.76,0.0003728,14]
[313952551,1707853844978,-500.0,0.0003728,14]
[313952552,1707853844997,-500.0,0.0003728,14]
[313952553,1707853845008,-500.0,0.0003728,14]
[313952554,1707853845017,-500.0,0.0003728,14]
[313952555,1707853845026,-500.0,0.0003728,14]
[313952556,1707853845035,-500.0,0.0003728,14]
[313952557,1707853845044,-500.0,0.0003728,14]
[313952558,1707853845054,-500.0,0.0003728,14]
[313952559,1707853845064,-500.0,0.0003728,14]
[313952560,1707853845074,-500.0,0.0003728,14]
[313952561,1707853845082,-602.86063614,0.0003728,14]
[313952562,1707853845092,-3138.39,0.0003728,14]
[313952563,1707853845102,-3138.39,0.0003728,14]
[313952564,1707853845111,-3138.39,0.0003728,14]
[313952565,1707853845120,-3138.39,0.0003728,14]
[313952566,1707853845129,-3138.39,0.0003728,14]
[313952567,1707853845138,-500.0,0.0003728,14]
[313952568,1707853845147,-500.0,0.0003728,14]
[313952569,1707853845156,-500.0,0.0003728,14]
[313952570,1707853845166,-500.0,0.0003728,14]
[313952571,1707853845175,-500.0,0.0003728,14]
[313952572,1707853845184,-518.72,0.0003728,14]
[313952573,1707853845192,-518.72,0.0003728,14]
[313952574,1707853845202,-518.72,0.0003728,14]
[313952575,1707853845211,-518.72,0.0003728,14]
[313952576,1707853845220,-518.72,0.0003728,14]
[313952577,1707853845230,-250.0,0.0003728,2]
[313952578,1707853845240,-209.65955535,0.0003728,4]
[313952579,1707853845249,-166.00654704,0.0003728,4]
[313952580,1707853845259,-907.14192831,0.0003728,4]
[313952581,1707853845269,-11558.84940842,0.0003728,2]
[313952582,1707853845278,-154.95355109,0.0003728,4]
[313952583,1707853845289,-155.45691459,0.0003728,4]
[313952584,1707853845299,-155.07598723,0.0003728,4]
[313952585,1707853845308,-7098.02345881,0.0003728,2]
[313952586,1707853845318,-161.66447433,0.0003728,4]
[313952587,1707853845327,-1747.38022649,0.0003728,4]
[313952588,1707853845337,-12997.45275592,0.0003728,4]
[313952589,1707853845347,-154.87609912,0.0003728,4]
[313952590,1707853845356,-156.23048351,0.0003728,4]
[313952591,1707853845366,-155.94017769,0.0003728,4]
[313952592,1707853845375,-155.90837594,0.0003728,4]
[313952593,1707853845385,-380.62282008,0.0003728,4]
[313952594,1707853845394,-1498.47437011,0.0003728,4]
[313952595,1707853845403,-1435.25522947,0.0003728,4]
[313952596,1707853845412,-7989.76732382,0.0003728,2]
[313952597,1707853845421,-427.63664462,0.0003728,2]
[313952598,1707853845430,-1037.67579198,0.0003728,3]
[313952599,1707853845439,-155.45117966,0.0003728,4]
[313952600,1707853845448,-535.79408158,0.0003728,4]
[313952601,1707853845457,-176.00454695,0.0003728,4]
[313952602,1707853845467,-164.89130769,0.0003728,4]
[313952603,1707853845476,-156.77930405,0.0003728,4]
[313952604,1707853845485,-312.32642729,0.0003728,4]
[313952605,1707853845494,-292.00522192,0.0003728,4]
[313952606,1707853845503,-155.09916431,0.0003728,4]
[313952607,1707853845512,-198.3379802,0.0003728,4]
[313952608,1707853845522,-261.53886969,0.0003728,4]
[313952609,1707853845531,-385.18287823,0.0003728,10]
[313952610,1707853845542,-326.73535811,0.0003728,4]
[313952611,1707853845552,-911.03577233,0.0003728,5]
[313952612,1707853845562,-155.31545438,0.0003728,4]
[313952613,1707853845572,-154.95351395,0.0003728,4]
[313952614,1707853845582,-915.40342186,0.0003728,10]
[313952615,1707853845592,-1511.29191943,0.0003728,3]
[313952616,1707853845601,-579.94419427,0.00037281,14]
[313952617,1707853845611,-884.37,0.00037281,14]
[313952618,1707853845621,-884.37,0.00037281,14]
[313952619,1707853845629,-884.37,0.00037281,14]
[313952620,1707853845639,-884.37,0.00037281,14]
[313952621,1707853845647,-884.37,0.00037281,14]
[313952622,1707853845657,-884.37,0.00037281,14]
[313952623,1707853845666,-884.37,0.00037281,14]
[313952624,1707853845675,-884.37,0.00037281,14]
[313952625,1707853845683,-884.37,0.00037281,14]
[313952626,1707853845693,-884.37,0.00037281,14]
[313952627,1707853845702,-884.37,0.00037281,14]
[313952628,1707853845711,-884.37,0.00037281,14]
[313952629,1707853845720,-884.37,0.00037281,14]
[313952631,1707853845729,-884.37,0.00037281,14]
[313952633,1707853845739,-884.37,0.00037281,14]
[313952635,1707853845749,-884.37,0.00037281,14]
[313952637,1707853845759,-884.37,0.00037281,14]
[313952638,1707853845769,-884.37,0.00037281,14]
[313952639,1707853845778,-884.60855745,0.00037281,14]
[313952640,1707853845787,-500.0,0.00037281,14]
[313952641,1707853845796,-500.0,0.00037281,14]
[313952642,1707853845805,-500.0,0.00037281,14]
[313952643,1707853845814,-500.0,0.00037281,14]
[313952644,1707853845825,-500.0,0.00037281,14]
[313952645,1707853845837,-500.0,0.00037281,14]
[313952646,1707853845848,-500.0,0.00037281,14]
[313952647,1707853845858,-500.0,0.00037281,14]
[313952648,1707853845867,-500.0,0.00037281,14]
[313952649,1707853845877,-500.0,0.00037281,14]
[313952650,1707853845886,-500.0,0.00037281,14]
[313952651,1707853845895,-500.0,0.00037281,14]
[313952652,1707853845905,-500.0,0.00037281,14]
[313952653,1707853845914,-376.08299784,0.00037281,14]
[313952654,1707853845924,-568.48,0.00037281,14]
[313952655,1707853845933,-500.0,0.00037281,14]
[313952656,1707853845943,-500.0,0.00037281,14]
[313952657,1707853845952,-500.0,0.00037281,14]
[313952658,1707853845960,-513.6,0.00037281,14]
[313952659,1707853845969,-500.0,0.00037281,14]
[313952660,1707853845978,-500.0,0.00037281,14]
[313952661,1707853845987,-268.0,0.00037281,14]
[313952662,1707853845996,-828.68,0.00037281,14]
[313952663,1707853846006,-828.68,0.00037281,14]
[313952664,1707853846015,-828.68,0.00037281,14]
[313952665,1707853846024,-828.68,0.00037281,14]
[313952666,1707853846033,-828.68,0.00037281,14]
[313952667,1707853846042,-819.3,0.00037281,14]
[313952668,1707853846051,-828.68,0.00037281,14]
[313952670,1707853846061,-828.68,0.00037281,14]
[313952671,1707853846070,-819.3,0.00037281,14]
[313952673,1707853846079,-828.68,0.00037281,14]
[313952674,1707853846088,-828.68,0.00037281,14]
[313952676,1707853846097,-819.3,0.00037281,14]
[313952677,1707853846105,-828.68,0.00037281,14]
[313952679,1707853846115,-819.3,0.00037281,14]
[313952681,1707853846124,-828.68,0.00037281,14]
[313952683,1707853846134,-819.3,0.00037281,14]
[313952685,1707853846143,-828.68,0.00037281,14]
[313952687,1707853846152,-819.3,0.00037281,14]
[313952689,1707853846161,-828.68,0.00037281,14]
[313952691,1707853846170,-828.68,0.00037281,14]
[313952693,1707853846179,-828.68,0.00037281,14]
[313952702,1707853846261,-819.3,0.00037281,14]
[313952703,1707853846271,-828.76325448,0.00037281,14]
[313952705,1707853846280,-819.3,0.00037281,14]
[313952707,1707853846289,-819.3,0.00037281,14]
[313952709,1707853846298,-819.3,0.00037281,14]
[313952710,1707853846307,-819.3,0.00037281,14]
[313952712,1707853846317,-819.3,0.00037281,14]
[313952714,1707853846326,-819.3,0.00037281,14]
[313952716,1707853846335,-819.3,0.00037281,14]
[313952718,1707853846343,-819.3,0.00037281,14]
[313952719,1707853846353,-819.3,0.00037281,14]
[313952721,1707853846363,-819.3,0.00037281,14]
[313952723,1707853846372,-819.3,0.00037281,14]
[313952725,1707853846381,-819.50980814,0.00037281,14]
[313952727,1707853846390,-574.21,0.00037281,14]
[313952728,1707853846399,-500.0,0.00037281,14]
[313952730,1707853846408,-500.0,0.00037281,14]
[313952732,1707853846417,-500.0,0.00037281,14]
[313952734,1707853846425,-500.0,0.00037281,14]
[313952735,1707853846434,-500.0,0.00037281,14]
[313952737,1707853846443,-424.77660875,0.00037281,14]
[313952739,1707853846453,-500.0,0.00037281,14]
[313952740,1707853846462,-500.0,0.00037281,14]
[313952741,1707853846472,-500.0,0.00037281,14]
[313952742,1707853846481,-500.0,0.00037281,14]
[313952743,1707853846490,-500.0,0.00037281,14]
[313952744,1707853846499,-500.0,0.00037281,14]
[313952745,1707853846508,-500.0,0.00037281,14]
[313952746,1707853846517,-560.02,0.00037281,14]
[313952747,1707853846527,-3138.39,0.00037281,14]
[313952748,1707853846537,-3138.39,0.00037281,14]
[313952749,1707853846546,-3138.39,0.00037281,14]
[313952750,1707853846555,-3138.39,0.00037281,14]
[313952751,1707853846565,-3138.39,0.00037281,14]
[313952752,1707853846574,-3138.39,0.00037281,14]
[313952753,1707853846583,-3138.39,0.00037281,14]
[313952754,1707853846592,-3138.39,0.00037281,14]
[313952755,1707853846601,-3138.39,0.00037281,14]
[313952756,1707853846610,-3138.39,0.00037281,14]
[313952757,1707853846620,-3138.39,0.00037281,14]
[313952758,1707853846629,-3138.39,0.00037281,14]
[313952759,1707853846638,-3138.39,0.00037281,14]
[313952760,1707853846647,-3138.39,0.00037281,14]
[313952761,1707853846656,-3138.39,0.00037281,14]
[313952762,1707853846665,-3138.39,0.00037281,14]
[313952763,1707853846673,-3138.39,0.00037281,14]
[313952764,1707853846682,-3138.39,0.00037281,14]
[313952765,1707853846691,-3138.47440632,0.00037281,14]
[313952766,1707853846700,-500.0,0.00037281,14]
[313952767,1707853846709,-500.0,0.00037281,14]
[313952768,1707853846719,-500.0,0.00037281,14]
[313952769,1707853846727,-500.0,0.00037281,14]
[313952770,1707853846736,-586.50656473,0.00037281,14]
[313952771,1707853846746,-518.72,0.00037281,14]
[313952772,1707853846756,-518.72,0.00037281,14]
[313952773,1707853846765,-518.72,0.00037281,14]
[313952774,1707853846774,-518.72,0.00037281,14]
[313952775,1707853846783,-518.72,0.00037281,14]
[313952776,1707853846792,-518.72,0.00037281,14]
[313952777,1707853846801,-518.72,0.00037281,14]
[313952778,1707853846810,-518.72,0.00037281,14]
[313952779,1707853846820,-518.72,0.00037281,14]
[313952780,1707853846830,-518.72,0.00037281,14]
[313952781,1707853846840,-518.72,0.00037281,14]
[313952782,1707853846849,-158.253506,0.00037282,2]
[313952783,1707853846859,-152.353166,0.00037282,2]
[313952784,1707853846869,-197.116436,0.00037282,2]
[313952785,1707853846878,-151.0,0.00037282,2]
[313952786,1707853846889,-151.0,0.00037282,2]
[313952787,1707853846898,-151.0,0.00037282,2]
[313952788,1707853846908,-252.327771,0.00037282,2]
[313952789,1707853846918,-457978.54080956,0.00037284,30]
[313952790,1707853846935,-378978.99149902,0.00037284,30]
[313952791,1707853847040,-500.0,0.00037279,15]
[313952792,1707853847049,-500.0,0.00037279,15]
[313952793,1707853847059,-500.0,0.00037279,15]
[313952794,1707853847070,-500.0,0.00037279,15]
[313952795,1707853847079,-500.0,0.00037279,15]
[313952796,1707853847089,-500.0,0.00037279,15]
[313952797,1707853847098,-500.0,0.00037279,15]
[313952798,1707853847107,-500.0,0.00037279,15]
[313952799,1707853847117,-575.42153042,0.00037279,15]
[313952800,1707853847126,-518.72,0.00037281,14]
[313952801,1707853847134,-518.72,0.00037281,14]
[313952802,1707853847144,-518.72,0.00037281,14]
[313952803,1707853847153,-518.72,0.00037281,14]
[313952804,1707853847162,-518.72,0.00037281,14]
[313952805,1707853847172,-518.72,0.00037281,14]
[313952806,1707853847181,-518.72,0.00037281,14]
[313952807,1707853847190,-518.92187837,0.00037281,14]
[313952808,1707853847199,-128581.37638774,0.00037284,30]
[313952884,1707854854098,-360.81623429,0.00024978,2]
[313952885,1707854854120,-154.81422293,0.00024979,4]
[313952886,1707854854140,-727.33115211,0.00025,10]
[313952887,1707854854163,-8506.88100232,0.00025315,2]
[313952890,1707854960124,-12893.29453887,0.00025315,2]